Cogmind - Beta 11.1 @@@ ROGUE MODE // 2022.05.23 @ 15:21:14 Player: Ruxi Result: Destroyed by 8R-AWN with 8R-AWN's Boregun Performance ------------- Evolutions (0) 0 Regions Visited (3) 600 Robots Destroyed (17) 85 Value Destroyed (424) 424 Prototype IDs (23) 460 Alien Tech Used (0) 0 Bonus (-372) -372 TOTAL SCORE: 1197 Bonus ------- Aligned with FarCom 300 Friendly Fire -672 Cogmind --------- Core Integrity 0/250 Matter 189/300 Energy 100/100 System Corruption 4% Temperature Cool (0) Movement Treading (160) Location -10/Exiles Parts ------- > --- POWER (1) -------- (None) > --- PROPULSION (2) --- Light Treads Improved Treads > --- UTILITY (2) ------ Large Storage Unit Medium Armor Plating > --- WEAPON (2) ------- AWS/Gauss > --- INVENTORY (15) --- Reinforced Deuterium Engine Improved Treads Improved Treads Sensor Array Light Armor Plating Medium Armor Plating Tractor Beam Light Assault Rifle Grenade Launcher Rocket Launcher Datajack Peak State ------------ > --- POWER ------------ Light Ion Engine > --- PROPULSION ------- Light Treads Improved Treads > --- UTILITY ---------- Large Storage Unit Medium Armor Plating > --- WEAPON ----------- AWS/Gauss > --- INVENTORY -------- Reinforced Deuterium Engine Improved Treads Improved Treads Light Armor Plating Medium Armor Plating Medium Armor Plating Medium Armor Plating Tractor Beam EM Pulse Gun Medium Laser Light Assault Rifle Grenade Launcher Rocket Launcher Datajack Mining Laser [Rating: 25] Favorites ----------- Power Light Ion Engine Engine Light Ion Engine Propulsion Light Treads Treads Light Treads Leg Aluminum Leg Hover Unit Hover Unit Utility Large Storage Unit Device Sensor Array Storage Large Storage Unit Protection Medium Armor Plating Weapon EM Pulse Gun Energy Gun EM Pulse Gun Ballistic Gun Light Assault Rifle Launcher Rocket Launcher Build | -11 -10 -10 -10 ------- Run | Scr Mat Min Exi Slots Evolved . | . . . . Power . | . . . . Propulsion . | . . . . Utility . | . . . . Weapon . | . . . . Parts Attached 35 | 6 13 6 10 Power 6 | 1 1 3 1 Engine 6 | 1 1 3 1 Core . | . . . . Reactor . | . . . . Propulsion 10 | 2 7 1 . Treads 5 | . 4 1 . Leg 3 | 2 1 . . Wheel . | . . . . Hover 2 | . 2 . . Flight . | . . . . Utility 9 | 1 2 1 5 Device 3 | . 1 1 1 Storage 2 | 1 1 . . Processor . | . . . . Hackware . | . . . . Protection 4 | . . . 4 Artifact . | . . . . Weapon 10 | 2 3 1 4 Energy Gun 5 | 2 3 . . Energy Cannon . | . . . . Ballistic Gun 3 | . . 1 2 Ballistic Cannon . | . . . . Launcher 2 | . . . 2 Special Weapon . | . . . . Impact Weapon . | . . . . Slashing Weapon . | . . . . Piercing Weapon . | . . . . Special Melee Weapon . | . . . . Unidentified Prototypes . | . . . . Corrupted Parts 1 | . . 1 . System Corruption 2 | . . 2 . Parts Lost 6 | . 3 . 3 Power 1 | . . . 1 Propulsion 1 | . 1 . . Utility 2 | . . . 2 Weapon 2 | . 2 . . Highest Loss Streak 3 | . 2 . 3 To Critical Strikes . | . . . . Average Slot Usage (%) 91 | . 87 98 87 Engine 13 | . 14 13 13 Treads 25 | . 19 28 28 Leg 1 | . 6 . . Device 9 | . 10 14 4 Storage 14 | . 14 14 14 Protection 3 | . . . 9 Energy Gun 11 | . 19 14 3 Ballistic Gun 9 | . . 13 13 Naked Turns . | . . . . Heaviest Build 40 | 12 26 28 40 Greatest Support 46 | 20 46 46 43 Greatest Overweight (x) . | . . . . Average Overweight (x) . | . . . . Largest Inventory Capacity 15 | 8 15 15 15 Average Capacity 12 | 7 8 15 15 Most Carried 15 | 6 15 15 15 Average Carried 11 | 3 7 14 13 Final Capacity 15 | 8 15 15 15 Final Carried 15 | 4 15 15 11 Class Distribution -------------------- 96% | Mutant 3% | Scavenger-Mutant Dominant Class ---------------- Mutant | -10/Materials Mutant | -10/Mines Mutant | -10/Exiles Resources | -11 -10 -10 -10 ----------- Run | Scr Mat Min Exi Matter Collected 425 | 191 169 65 . Remotely . | . . . . Salvage Created 594 | . 528 39 27 Parts 45 | . 39 6 . Haulers Intercepted 1 | . 1 . . Recyclers Shooed . | . . . . Parts Field Recycled . | . . . . Retrieved Matter . | . . . . Parts Self-Destructed . | . . . . Prevented . | . . . . Kills | -11 -10 -10 -10 ------- Run | Scr Mat Min Exi Combat Hostiles Destroyed 15 | . 9 3 3 Guns 7 | . 6 1 . AOE 8 | . 3 2 3 Classes Destroyed 7 | . 5 1 1 Worker 1 | . 1 . . Tunneler 1 | . 1 . . Hauler 1 | . 1 . . Watcher 2 | . 2 . . Swarmer 3 | . . 3 . Grunt 9 | . 9 . . Assembled 7 | . . . 7 Best Kill Streak 5 | . 5 3 3 Combat Bots Only 3 | . 2 3 3 Max Kills in Single Turn 4 | . 2 2 4 Gunslinging . | . . . . Exploded 2 | . 1 2 2 Melee . | . . . . Uniques/NPCs Destroyed . | . . . . Combat | -11 -10 -10 -10 -------- Run | Scr Mat Min Exi Damage Taken 1359 | . 519 79 761 Core 263 | . 145 15 103 Absorbed by Shields . | . . . . Core Remaining (%) 100 | 100 . . . Volleys Fired 62 | . 52 6 4 Largest 2 | . 2 1 2 Hottest 80 | . 80 40 63 Shots Fired 86 | . 75 7 4 Gun 82 | . 75 7 . Cannon . | . . . . Launcher 4 | . . . 4 Special . | . . . . Kinetic . | . . . . Thermal . | . . . . Explosive 4 | . . . 4 Electromagnetic 82 | . 75 7 . Robot Hit Streak 10 | . 10 3 . Robot Miss Streak 4 | . 4 2 1 Penetration Max . | . . . . Secondary Targets . | . . . . Shots Hit Robots 55 | . 51 4 . Core Hits 45 | . 23 4 18 Critical Kills . | . . . . Critical Parts Destroyed . | . . . . Critical Strikes 2 | . 2 . . Corrupt 2 | . 2 . . Melee Attacks . | . . . . Impact . | . . . . Slashing . | . . . . Piercing . | . . . . Sneak Attacks . | . . . . Combat Hostiles . | . . . . Follow-up Attacks . | . . . . Damage Inflicted 1690 | . 1103 116 471 Guns 752 | . 720 32 . Cannons . | . . . . Explosions 891 | . 383 84 424 Melee . | . . . . Ramming 47 | . . . 47 Kinetic . | . . . . Thermal 467 | . 383 84 . Explosive 424 | . . . 424 Electromagnetic 752 | . 720 32 . Impact . | . . . . Slashing . | . . . . Piercing . | . . . . Highest Corruption 4 | . 2 4 4 Average Corruption 3 | . 2 3 4 Corruption Purged . | . . . . Corruption Blocked . | . . . . Effects 30 | . 6 13 11 Message Errors 6 | . 2 1 3 Matter Fused 5 | . 2 2 1 Heat Flow Errors 3 | . 1 2 . Energy Discharges 5 | . . 3 2 Data Loss (minor) 6 | . 1 2 3 Data Loss (major) 3 | . . 2 1 Misfires 1 | . . 1 . Weapon Failures 1 | . . . 1 Overload Shots . | . . . . Overflow Damage 44 | . 15 . 29 Projectiles . | . . . . Explosions 44 | . 15 . 29 Melee . | . . . . Knockbacks . | . . . . Impact . | . . . . Kinetic . | . . . . Secondary . | . . . . Self-Inflicted Damage 129 | . 58 39 32 Shots 4 | . 2 1 1 Rammed 20 | . . . 20 Targets Rammed 20 | . . . 20 Kicked . | . . . . Crushed . | . . . . Highest Temperature 260 | . 256 260 3 Average Temperature 99 | . 103 94 2 Received Heat Transfer 252 | . 252 . . Effects 3 | . 3 . . Interference 3 | . 3 . . Siege Activations . | . . . . Robots Corrupted 1 | . 1 . . Combat Hostiles . | . . . . Parts Fried 3 | . 3 . . Impact Corruptions . | . . . . Robots Melted . | . . . . Combat Hostiles . | . . . . Parts Melted . | . . . . Heat Transferred 550 | . 450 100 . Parts Sabotaged . | . . . . Parts Stolen . | . . . . Parts Stripped . | . . . . Power Chain Reactions 8 | . 7 1 . Missiles Intercepted . | . . . . Alert | -11 -10 -10 -10 ------- Run | Scr Mat Min Exi Peak Influence 291 | . 291 169 . Initial 75 | . . 75 . Average 119 | . 143 105 . Maximum Alert Level 1 | . 1 . . Low Security (%) 95 | 100 91 100 . Level 1 4 | . 8 . . Level 2 . | . . . . Level 3 . | . . . . Level 4 . | . . . . Level 5 . | . . . . High Security . | . . . . Max Security . | . . . . Squads Dispatched 3 | . 3 . . Investigation 2 | . 2 . . Extermination . | . . . . Reinforcement 1 | . 1 . . Assault . | . . . . Garrison . | . . . . Intercept . | . . . . Searches Triggered . | . . . . Construction Impeded . | . . . . Haulers Reinforced . | . . . . Active Scanning Responses . | . . . . Cargo Convoy Interrupts . | . . . . Stealth | -11 -10 -10 -10 --------- Run | Scr Mat Min Exi Distress Signals 1 | . 1 . . Communications Jammed . | . . . . Distress Signals . | . . . . Times Spotted 22 | . 15 3 4 Peak Tracking Total 5 | . 3 3 5 Tactical Retreats . | . . . . Traps | -11 -10 -10 -10 ------- Run | Scr Mat Min Exi Traps Triggered 2 | . 2 . . Indirectly . | . . . . Trap Hack Attempts . | . . . . Triggered . | . . . . Disarmed . | . . . . Reprogrammed . | . . . . Reused . | . . . . Traps Extracted . | . . . . Installed . | . . . . Triggered 1 | . 1 . . Machines | -11 -10 -10 -10 ---------- Run | Scr Mat Min Exi Machines Disabled 6 | . 2 . 4 Max in Single Turn 2 | . 1 . 2 Machines Sabotaged . | . . . . Garrisons Compromised . | . . . . Overloaded Fab Kills . | . . . . Hacking | -11 -10 -10 -10 --------- Run | Scr Mat Min Exi Machines Accessed 6 | . 5 . 1 Terminals 5 | . 5 . . Fabricators . | . . . . Repair Stations . | . . . . Recycling Units . | . . . . Scanalyzers . | . . . . Garrison Access . | . . . . Total Hacks 16 | . 15 . 1 Successful 8 | . 7 . 1 Failed 8 | . 8 . . Catastrophic . | . . . . Database Lockouts . | . . . . Manual 16 | . 15 . 1 Terminals 15 | . 15 . . Fabricators . | . . . . Repair Stations . | . . . . Recycling Units . | . . . . Scanalyzers . | . . . . Garrison Access . | . . . . Terminal Hacks 3 | . 2 . 1 Branch Access Points 1 | . 1 . . Terminal Index 1 | . 1 . . EX-Prototype ID Bank 1 | . . . 1 Fabricator Hacks . | . . . . Repair Station Hacks . | . . . . Recycling Unit Hacks . | . . . . Scanalyzer . | . . . . Garrison Access Hacks . | . . . . Unauthorized Hacks 5 | . 5 . . Terminals 5 | . 5 . . Assimilate 1 | . 1 . . Botnet 3 | . 3 . . Operators 1 | . 1 . . Fabricators . | . . . . Repair Stations . | . . . . Recycling Units . | . . . . Scanalyzers . | . . . . Garrison Access . | . . . . Data Cores Recovered . | . . . . Used . | . . . . Hacking Detections 5 | . 5 . . Full Trace Events . | . . . . Feedback Events . | . . . . Feedback Blocked . | . . . . Robot Schematics Acquired . | . . . . Robots Built . | . . . . Authchips . | . . . . Time . | . . . . Total Robot Build Rating . | . . . . Part Schematics Acquired . | . . . . Parts Built . | . . . . Authchips . | . . . . Time . | . . . . Total Part Build Rating . | . . . . Parts Repaired . | . . . . Time . | . . . . Parts Recycled . | . . . . Recycled Matter . | . . . . Retrieved Matter . | . . . . Retrieved Components . | . . . . Parts Scanalyzed . | . . . . Part Schematics Acquired . | . . . . Parts Damaged . | . . . . Bothacking | -11 -10 -10 -10 ------------ Run | Scr Mat Min Exi Used RIF Installer . | . . . . Robots Hacked . | . . . . Non-combat . | . . . . Combat . | . . . . Robot Hacks Applied . | . . . . Relay Couplers Released . | . . . . Fabnet Peak Effective % . | . . . . Robots Rewired . | . . . . Allies Hacked . | . . . . Hacks Repelled . | . . . . Allies | -11 -10 -10 -10 -------- Run | Scr Mat Min Exi Total Allies 1 | . 1 . . Largest Group 1 | . 1 1 1 Highest-Rated Group 10 | . 10 10 10 Highest-Rated Ally 10 | . 10 10 10 Total Orders . | . . . . Ally Attacks . | . . . . Total Damage . | . . . . Kills . | . . . . Allies Corrupted . | . . . . Allies Melted . | . . . . Intel | -11 -10 -10 -10 ------- Run | Scr Mat Min Exi Robot Analysis Total . | . . . . Derelict Logs Recovered 1 | . . 1 . Drone Launches . | . . . . Drone Recoveries . | . . . . Exploration | -11 -10 -10 -10 ------------- Run | Scr Mat Min Exi Turns Passed 2210 | 57 690 623 840 Spaces Moved 1282 | 42 388 375 477 Core 9 | 9 . . . Treads 1095 | . 243 375 477 Legs 82 | 33 49 . . Wheels . | . . . . Hover 96 | . 96 . . Flight . | . . . . Fastest Speed 50 | 50 56 160 160 Average Speed 148 | 105 129 160 160 Slowest Speed 160 | 120 160 160 160 Overloaded Moves . | . . . . Propulsion Burnouts . | . . . . Robots Hopped . | . . . . Cave-ins Triggered . | . . . . Exploration Rate (%) 61 | 4 69 94 80 Regions Visited 3 Branch Regions 2 Pre-discovered Areas 1 | . . 1 . Known Exits Taken 1 | . 1 . . Unknown Exits Taken 2 | 1 . 1 . Scrap Searched 1 | . . 1 . Spaces Dug . | . . . . Terrain Destroyed 60 | . 30 8 22 Melee . | . . . . Projectile . | . . . . AOE 60 | . 30 8 22 Terrain Rammed . | . . . . Walls Destroyed . | . . . . Machines Disabled . | . . . . Actions | -11 -10 -10 -10 --------- Run | Scr Mat Min Exi Total 1491 | 53 503 393 542 Wait 34 | . 21 . 13 Move 1279 | 41 387 374 477 Hop . | . . . . Pick Up 32 | 6 19 4 3 Fast Attach 12 | 4 3 2 3 Attach 12 | 2 2 2 6 Detach 6 | . . . 6 Swap 11 | . 8 2 1 Drop 23 | . 11 3 9 Fire 62 | . 52 6 4 Melee . | . . . . Ram . | . . . . Kick . | . . . . Crush 20 | . . . 20 Escape Stasis . | . . . . Rewire . | . . . . Trap . | . . . . Miscellaneous . | . . . . Route ------- -11/Scrapyard -10/Materials (discovered 4 exits: [*Mat x3] / *Min) -10/Mines (discovered 3 exits: [*Mat x2] / *Exi) -10/Exiles (discovered 2 exits: Min x2) History --------- Turn | Location | Event 24 | -11/Scrapyard | Discovered new exit (range 15) 58 | -11/Scrapyard | Entered Materials 257 | -10/Materials | Discovered new exit (range 10) 268 | -10/Materials | Identified exit to Mines 362 | -10/Materials | Discovered new exit (range 16) 432 | -10/Materials | Core integrity fell below 50% 580 | -10/Materials | Build established: Mutant 625 | -10/Materials | Discovered new exit (range 12) 748 | -10/Materials | Entered Mines 748 | -10/Mines | Accompanied by 1 ally 812 | -10/Mines | Discovered new exit (range 8) 1037 | -10/Mines | Received a Rocket Launcher from a helpful Derelict 1248 | -10/Mines | Discovered new exit (range 7) 1324 | -10/Mines | Learned location of Storage (-9) 1364 | -10/Mines | Deemed a non-threat by the Exiles lab entrance 1364 | -10/Mines | Discovered new exit (range 5) 1371 | -10/Mines | Entered Exiles 1371 | -10/Exiles | Accompanied by 1 ally 1372 | -10/Exiles | Identified exit to Mines 1422 | -10/Exiles | Met 8R-AWN 1449 | -10/Exiles | Met EX-HEX 1503 | -10/Exiles | Met EX-BIN 1526 | -10/Exiles | Aligned with FarCom system 1527 | -10/Exiles | Given EX-Vault access code 1566 | -10/Exiles | Opened EX-Vault 1583 | -10/Exiles | Found AWS/Gauss 1618 | -10/Exiles | Warned to stay clear of 0b10 Research branches 1665 | -10/Exiles | Met EX-DEC 1813 | -10/Exiles | Visited The Gauntlet 2132 | -10/Exiles | Attacked by the Exiles 2164 | -10/Exiles | Core integrity fell below 20% 2211 | -10/Exiles | Destroyed by 8R-AWN with 8R-AWN's Boregun Last Messages --------------- 02189_ HV Slug penetrates Earth. 02189_ Penetrated by HV Slug. 02189_ HV Slug penetrates Earth. 02191_ ZV9<4TRL&QYV>J>%N3EUF,SZNRMHXX0H 02191_ Slammed into 8R-AWN. 02194_ HV Slug penetrates Wall. 02194_ HV Slug penetrates Assembled Analyzer. 02194_ Penetrated by HV Slug. 02194_ Critical hit (Destroy). 02194_ Med. Armor Plating destroyed. 02195_ Slammed into 8R-AWN. 02198_ HV Slug penetrates Wall. 02198_ Slammed into 8R-AWN. 02202_ Penetrated by HV Slug. 02202_ HV Slug penetrates Earth. 02202_ Penetrated by HV Slug. 02202_ HV Slug penetrates Earth. 02206_ Penetrated by HV Slug. 02206_ HV Slug penetrates Earth. 02206_ Penetrated by HV Slug. Map ----- +----------------------------------------------------+ | """##??????????????????????????????????? | | "X" """"???????????????????????????????????? | | """ #???????????????????????????????????? | | """""""""#???????????????????????????????????? | | | ###########???????????????????????????????????? | | #?????????????????????????????????????????????? | | #?????????????????????????????????????????????? | | ##????????????????????????????????????????????? | | ##???###########?????????????????????????????? | | #####" """""""##????????????????????????????? | | " """"##???????????????????????????? | | " #???????????????????????????? | | " #???????????????????????????? | | a #???????????#####???????????? | | ##?????????##" #???????????? | | ###???????#" #???????????? | | " ""##????##" ##??????????? | | """ # ###### ###????????# | | ####""" # ## ########## | | ???##""" # ## #""""## | | ????#"""" ;; * | | ???##" =% ## * | | ####"""" ! #### | | #""" #?#"""""#### | | "" g #" "##?#######??#### | | @ ######??????????????### | | ##?????????????????????? | | " #??????????????????????? | | "" " ##??????????????????????? | | ##""" " " "" ##???????????????????????? | | ######""" """ ##????????????????????????? | | #?????##""""# # #????????????????????????? | | #???????##### ### ####????????????????????????? | | ??????????# ??# ###????????????????????????????? | | ?????????#??? #???????????????????????????????? | | "??????????? #????????????????????????????????? | | ""!"?????????? ??????????????????????????????????? | | #####????????????????????????????????????????????? | | ?????????????????????????????????????????????????? | | ?????????????????????????????????????????????????? | | ?????????????????????????????????????????????????? | | ?????????????????????????????????????????????????? | | ?????????????????????????????????????????????????? | | ?????????????????????????????????????????????????? | | ?????????????????????????????????????????????????? | | ?????????????????????????????????????????????????? | | ?????????????????????????????????????????????????? | | ?????????????????????????????????????????????????? | | ?????????????????????????????????????????????????? | | ?????????????????????????????????????????????????? | +----------------------------------------------------+ Best States ------------- Heat Dissipation 25 Energy Generation 10 Energy Capacity 125 Matter Stores 300 Matter Capacity 300 Sight Range 16 Robot Scan Range 14 Terrain Scan Density 10 Armor Coverage 225 Evasion (%) 55 Recoil Reduction 2 Item Schematics ----------------- None Robot Schematics ------------------ None Fabricated ------------ Nothing Alien Tech Used ----------------- None Achievements -------------- None Challenges ------------ None Game ------ Seed SwordLayeredNukerbomber Manual? 0 Play Time 01:49:51 Cumulative 71.4 hours Start 2022.05.22 @ 13:58:11 End 2022.05.23 @ 15:21:14 Sessions 1 Manual Loads 0 Difficulty Rogue Special Mode None Game No. 51 Rogue 49 Adventurer 0 Explorer 2 Win Type - Total 0 Types 0/0/0/0/0/0/0/0/0 Lore% 24 Gallery% 31 Achievement% 26 Wizard Run 0 Options --------- ASCII 0 Keyboard 0 Movement Numpad Keybinds 0 Fullscreen 1 Font 18/SmallcapsGlow Map View 76x50 Tactical HUD 1 Map Filters NONE Filters NONE Steam 1 RUN: abb7ddc7-e35e-4e99-9fae-b6776d183ef7